fUSD/lending_fUSD_20260426
["ID","MTS","AMOUNT","RATE_DAILY","PERIOD"]
[421170770,1777189847987,-185.0,0.00035527,30]
[421170771,1777189847996,-323.0,0.0003553,30]
[421170772,1777189848006,-159.0,0.0003553,30]
[421170773,1777189848015,-150.0,0.00035574,7]
[421170774,1777189848025,-150.0,0.00035612,7]
[421170775,1777189848034,-150.0,0.00035612,7]
[421170776,1777189848043,-500.0,0.00035616,120]
[421170777,1777189848054,-150.0,0.00035618,7]
[421170778,1777189848064,-150.0,0.00035634,7]
[421170779,1777189848073,-150.0,0.00035643,7]
[421170780,1777189848082,-150.0,0.00035693,7]
[421170781,1777189848093,-502.0,0.00035733,21]
[421170782,1777189848103,-150.0,0.00035745,30]
[421170783,1777189848112,-150.0,0.00035745,7]
[421170784,1777189848121,-150.0,0.00035745,7]
[421170785,1777189848131,-150.0,0.00035745,7]
[421170786,1777189848140,-150.0,0.00035753,7]
[421170787,1777189848150,-150.0,0.00035779,7]
[421170788,1777189848161,-150.0,0.00035813,7]
[421170789,1777189848172,-150.0,0.00035833,7]
[421170790,1777189848181,-150.0,0.00035873,7]
[421170791,1777189848190,-150.0,0.00035877,7]
[421170792,1777189848199,-150.0,0.00035877,7]
[421170793,1777189848209,-150.0,0.00035928,7]
[421170794,1777189848218,-150.0,0.00035933,7]
[421170795,1777189848227,-150.0,0.0003594,7]
[421170796,1777189848236,-150.0,0.00035992,7]
[421170797,1777189848247,-150.0,0.00036009,30]
[421170798,1777189848256,-150.0,0.00036009,7]
[421170799,1777189848266,-150.0,0.00036009,7]
[421170800,1777189848276,-150.0,0.00036009,7]
[421170801,1777189848286,-500.0,0.00036027,120]
[421170802,1777189848295,-1616.53,0.0003604,10]
[421170803,1777189848305,-1719.08,0.00036047,10]
[421170804,1777189848315,-150.0,0.00036052,7]
[421170805,1777189848324,-541.2,0.00036094,10]
[421170806,1777189848333,-150.0,0.00036101,7]
[421170807,1777189848343,-150.0,0.00036112,7]
[421170808,1777189848352,-150.0,0.00036142,7]
[421170809,1777189848362,-150.0,0.00036142,7]
[421170810,1777189848373,-150.0,0.00036172,7]
[421170811,1777189848382,-150.0,0.00036213,7]
[421170812,1777189848391,-150.0,0.00036231,7]
[421170813,1777189848400,-150.0,0.00036245,7]
[421170814,1777189848410,-150.0,0.00036263,7]
[421170815,1777189848420,-150.0,0.00036274,30]
[421170816,1777189848430,-150.0,0.00036274,7]
[421170817,1777189848439,-150.0,0.00036274,7]
[421170818,1777189848448,-150.0,0.00036274,7]
[421170819,1777189848458,-150.0,0.00036291,7]
[421170820,1777189848467,-150.0,0.00036351,7]
[421170821,1777189848477,-150.0,0.00036407,7]
[421170822,1777189848486,-150.0,0.00036407,7]
[421170823,1777189848495,-150.0,0.00036411,7]
[421170824,1777189848505,-150.0,0.00036424,7]
[421170825,1777189848514,-150.0,0.0003643,2]
[421170826,1777189848523,-500.0,0.00036438,120]
[421170827,1777189848534,-975.2,0.00036467,10]
[421170828,1777189848544,-150.0,0.00036471,7]
[421170829,1777189848554,-857.74,0.00036471,10]
[421170830,1777189848563,-678.61,0.00036483,10]
[421170831,1777189848572,-150.0,0.00036498,7]
[421170832,1777189848582,-185.0,0.00036527,30]
[421170833,1777189848591,-323.0,0.0003653,30]
[421170834,1777189848601,-159.0,0.0003653,30]
[421170835,1777189848610,-150.0,0.0003653,7]
[421170836,1777189848619,-150.0,0.00036539,30]
[421170837,1777189848628,-150.0,0.00036539,7]
[421170838,1777189848638,-150.0,0.00036539,7]
[421170839,1777189848648,-150.0,0.00036539,7]
[421170840,1777189848659,-150.0,0.00036585,7]
[421170841,1777189848668,-150.0,0.0003659,7]
[421170842,1777189848677,-150.0,0.0003665,7]
[421170843,1777189848687,-150.0,0.00036657,7]
[421170844,1777189848696,-150.0,0.00036671,7]
[421170845,1777189848706,-150.0,0.00036671,7]
[421170846,1777189848716,-1157.94,0.00036679,10]
[421170847,1777189848726,-150.0,0.0003671,7]
[421170848,1777189848735,-267.73,0.00036721,10]
[421170849,1777189848745,-150.0,0.00036746,7]
[421170850,1777189848755,-150.0,0.0003677,7]
[421170851,1777189848764,-150.0,0.00036783,7]
[421170852,1777189848773,-150.0,0.00036804,30]
[421170853,1777189848782,-150.0,0.00036804,7]
[421170854,1777189848792,-150.0,0.00036804,7]
[421170855,1777189848801,-150.0,0.00036804,7]
[421170856,1777189848810,-150.0,0.00036829,7]
[421170857,1777189848819,-500.0,0.00036849,120]
[421170858,1777189848829,-150.0,0.00036889,7]
[421170859,1777189848839,-502.0,0.00036898,22]
[421170860,1777189848849,-1357.18,0.000369,15]
[421170861,1777189848858,-181.77,0.000369,15]
[421170862,1777189848868,-364.01032411,0.00036904,30]
[421170863,1777189848878,-150.0,0.00036907,7]
[421170864,1777189848887,-2500.0,0.00036919,10]
[421170865,1777189848897,-150.0,0.00036936,7]
[421170866,1777189848906,-150.0,0.00036936,7]
[421170867,1777189848915,-150.0,0.00036949,7]
[421170868,1777189848924,-316.72,0.00037,15]
[421170869,1777189848934,-150.0,0.00037009,7]
[421170870,1777189848943,-364.01032411,0.00037068,30]
[421170871,1777189848952,-159.30109849,0.00037068,30]
[421170872,1777189848962,-272.37824658,0.00037068,7]
[421170873,1777189848971,-239.74327894,0.00037068,7]
[421170874,1777189848981,-237.45058514,0.00037068,7]
[421170875,1777189848990,-150.0,0.00037068,7]
[421170876,1777189848999,-228.85103325,0.00037068,7]
[421170877,1777189849009,-227.43731342,0.00037068,7]
[421170878,1777189849019,-196.17255609,0.00037068,7]
[421170879,1777189849028,-156.71092519,0.00037068,7]
[421170880,1777189849038,-239.87337829,0.00037068,7]
[421170881,1777189849047,-150.0,0.00037081,120]
[421170882,1777189849058,-91821.2855466,0.00037082,2]
[421170883,1777189851278,-660.61987424,0.00012297,2]
[421170884,1777189851289,-857.0,0.0002,5]
[421170885,1777189851300,-104.91677939,0.00037082,2]
[421170886,1777189851343,-69579.47145796,0.00037082,2]
[421170887,1777189851355,-732.23943309,0.00037082,2]
[421170888,1777189851408,-481.3395008,0.00037082,2]
[421170889,1777189851421,-1179.15927699,0.00037082,2]
[421170890,1777189864456,5000.0,9.947e-05,120]
[421170891,1777189864534,1207.34495597,0.00013662,120]
[421170892,1777189892559,500.0,6.605e-05,2]
[421170893,1777189914006,9500.01,6.743e-05,2]
[421170894,1777189914034,10000.01,6.743e-05,2]
[421170897,1777189923376,-9853.27379269,6.743e-05,2]
[421170898,1777189923493,-10000.01,6.743e-05,2]
[421170899,1777189927098,-10000.01,6.743e-05,2]
[421170900,1777189927122,-10000.01,6.743e-05,2]
[421170901,1777189927138,-10000.01,6.743e-05,2]
[421170902,1777189927183,-10000.01,6.743e-05,2]
[421170903,1777189927214,-10000.01,6.743e-05,2]
[421170904,1777189927233,-10000.01,6.743e-05,2]
[421170905,1777189932395,-10000.01,6.743e-05,2]
[421170906,1777189932625,-10000.01,6.743e-05,2]
[421170907,1777189932818,-10000.01,6.743e-05,2]
[421170908,1777189988403,-300.0,6.742e-05,2]
[421170909,1777190005708,-10000.01,6.743e-05,2]
[421170910,1777190005779,-10000.01,6.743e-05,2]
[421170911,1777190005978,-2661.19189269,6.743e-05,2]
[421170912,1777190006004,-4677.62621462,6.743e-05,2]
[421170913,1777190021910,-172.0,6.743e-05,3]
[421170914,1777190279220,10000.01,1.31e-05,3]
[421170915,1777190279245,10000.01,1.31e-05,3]
[421170916,1777190279267,10000.01,1.31e-05,3]
[421170917,1777190279290,10000.01,1.31e-05,3]
[421170918,1777190279313,10000.01,1.31e-05,3]
[421170919,1777190279335,10000.01,1.31e-05,3]
[421170920,1777190279358,10000.01,1.31e-05,3]
[421170921,1777190279381,10000.01,1.31e-05,3]
[421170922,1777190279813,10000.01,1.31e-05,3]
[421170923,1777190279837,10000.01,1.31e-05,3]
[421170924,1777190279871,430232.1794222,1.31e-05,3]
[421170926,1777190797166,-283.21088483,8.217e-05,2]
[421170929,1777191031858,-343.58722503,8.212e-05,2]
[421170930,1777191031868,-649.62984215,8.217e-05,2]
[421170931,1777191031880,-550.37015785,8.217e-05,2]
[421170932,1777191031891,-250.0,8.218e-05,2]
[421170933,1777191031900,-1200.0,8.218e-05,2]
[421170934,1777191031910,-280.0,8.219e-05,2]
[421170935,1777191031920,-500.0,8.219e-05,2]
[421170936,1777191031929,-500.0,8.219e-05,2]
[421170937,1777191031939,-500.0,8.219e-05,2]
[421170938,1777191031949,-500.0,8.219e-05,2]
[421170939,1777191031959,-500.0,8.219e-05,2]
[421170940,1777191031968,-500.0,8.219e-05,2]
[421170941,1777191031978,-428.44746342,8.219e-05,2]
[421170942,1777191031987,-300.0,8.226e-05,2]
[421170943,1777191031997,-300.0,8.226e-05,2]
[421170944,1777191032007,-300.0,8.226e-05,2]
[421170945,1777191032016,-2500.0,8.259e-05,2]
[421170946,1777191032025,-2500.0,8.259e-05,2]
[421170947,1777191032035,-1476.28363811,8.259e-05,2]
[421170948,1777191032044,-150.0,8.942e-05,2]
[421170949,1777191032054,-500.0,8.943e-05,2]
[421170950,1777191032063,-250.0,9.039e-05,2]
[421170951,1777191032073,-250.0,9.039e-05,2]
[421170952,1777191032083,-2500.0,9.039e-05,2]
[421170953,1777191032093,-2500.0,9.039e-05,2]
[421170954,1777191032103,-300.0,9.039e-05,2]
[421170955,1777191032112,-1151.0,9.039e-05,2]
[421170956,1777191032122,-501.78438159,9.039e-05,2]
[421170957,1777191032131,-150.0,9.103e-05,2]
[421170958,1777191032140,-1312.0,9.612e-05,2]
[421170959,1777191032150,-451.0,9.682e-05,2]
[421170960,1777191032159,-280.34932486,9.703e-05,2]
[421170961,1777191032169,-255.0,9.836e-05,2]
[421170962,1777191032178,-3908.6847,9.9e-05,2]
[421170963,1777191032188,-6786.3412,9.9e-05,2]
[421170964,1777191032199,-217.56,9.95e-05,2]
[421170965,1777191032208,-500.0,9.999e-05,2]
[421170966,1777191032218,-542.71015587,9.999e-05,2]
[421170967,1777191032228,-308.09394173,9.999e-05,2]
[421170968,1777191032237,-500.0,9.999e-05,2]
[421170969,1777191032247,-500.0,9.999e-05,2]
[421170970,1777191032256,-500.0,9.999e-05,2]
[421170971,1777191032266,-500.0,9.999e-05,2]
[421170972,1777191032275,-500.0,9.999e-05,2]
[421170973,1777191032284,-500.0,9.999e-05,2]
[421170974,1777191032294,-500.0,9.999e-05,2]
[421170975,1777191032304,-500.0,9.999e-05,2]
[421170976,1777191032313,-450.0,9.999e-05,2]
[421170977,1777191032322,-500.0,9.999e-05,2]
[421170978,1777191032331,-500.0,9.999e-05,2]
[421170979,1777191032340,-500.0,9.999e-05,2]
[421170980,1777191032350,-500.0,9.999e-05,2]
[421170981,1777191032359,-500.0,9.999e-05,2]
[421170982,1777191032369,-500.0,9.999e-05,2]
[421170983,1777191032379,-500.0,9.999e-05,2]
[421170985,1777191032388,-500.0,9.999e-05,2]
[421170987,1777191032398,-500.0,9.999e-05,2]
[421170989,1777191032408,-500.0,9.999e-05,2]
[421170991,1777191032417,-500.0,9.999e-05,2]
[421170992,1777191032428,-500.0,9.999e-05,2]
[421170993,1777191032437,-500.0,9.999e-05,2]
[421170994,1777191032447,-500.0,9.999e-05,2]
[421170995,1777191032456,-500.0,9.999e-05,2]
[421170996,1777191032465,-298.78289214,9.999e-05,2]
[421170997,1777191032475,-500.0,9.999e-05,2]
[421170998,1777191032484,-500.0,9.999e-05,2]
[421170999,1777191032493,-500.0,9.999e-05,2]
[421171000,1777191032503,-500.0,9.999e-05,2]
[421171001,1777191032512,-500.0,9.999e-05,2]
[421171002,1777191032523,-500.0,9.999e-05,2]
[421171003,1777191032532,-500.0,9.999e-05,2]
[421171004,1777191032541,-124.13296626,9.999e-05,2]
[421171005,1777191032554,-375.86703374,9.999e-05,2]
[421171006,1777191032563,-500.0,9.999e-05,2]
[421171007,1777191032573,-500.0,9.999e-05,2]
[421171008,1777191032582,-500.0,9.999e-05,2]
[421171009,1777191032591,-500.0,9.999e-05,2]
[421171010,1777191032601,-500.0,9.999e-05,2]
[421171011,1777191032611,-500.0,9.999e-05,2]
[421171012,1777191032620,-500.0,9.999e-05,2]
[421171013,1777191032630,-500.0,9.999e-05,2]
[421171014,1777191032640,-500.0,9.999e-05,2]
[421171015,1777191032649,-500.0,9.999e-05,2]
[421171016,1777191032658,-500.0,9.999e-05,2]
[421171017,1777191032668,-500.0,9.999e-05,2]
[421171018,1777191032677,-500.0,9.999e-05,2]
[421171019,1777191032686,-500.0,9.999e-05,2]
[421171020,1777191032696,-350.00000001,9.999e-05,2]
[421171021,1777191032706,-893.81158586,0.0001,2]
[421171022,1777191032718,-494.97495455,0.0001,2]
[421171023,1777191032734,-7808.45616975,0.0001,2]
[421171024,1777191032745,-273.08417687,0.0001,2]
[421171025,1777191032831,-858.45634641,0.0001,2]
[421171026,1777191032850,-310.55827694,0.0001,2]
[421171027,1777191032861,-334.02485,0.0001,2]
[421171036,1777191038085,-263.61918475,0.0001,2]
[421171038,1777191038347,-3977.17419144,0.0001,2]
[421171040,1777191040546,-1665.10024367,0.0001,2]
[421171041,1777191040759,-345.06545181,0.0001,2]
[421171042,1777191040814,-644.20590704,0.0001,2]
[421171065,1777191043038,-29823.36467007,0.0001,2]
[421171066,1777191043301,-101960.89351409,0.0001,2]
[421171067,1777191043311,-151.0,0.0001,2]
[421171068,1777191043321,-151.0,0.0001,2]
[421171069,1777191043335,-250.0,0.00010248,2]
[421171070,1777191043345,-425.16184594,0.00010273,2]
[421171071,1777191043355,-2500.0,0.000105,2]
[421171072,1777191043365,-55346.34276768,0.000106,2]
[421171073,1777191043375,-500.16151431,0.00010673,2]
[421171074,1777191043384,-247.01151493,0.00010673,2]
[421171075,1777191043394,-500.0,0.00010673,2]
[421171076,1777191043404,-500.0,0.00010673,2]
[421171077,1777191043414,-500.0,0.00010673,2]
[421171078,1777191043423,-610.78180049,0.00010673,2]
[421171079,1777191043433,-500.0,0.00010673,2]
[421171080,1777191043443,-500.36443756,0.00010673,2]
[421171081,1777191043459,-500.21843092,0.00010673,2]
[421171082,1777191043468,-228.55938561,0.00010699,2]
[421171083,1777191043478,-500.0,0.00010699,2]
[421171084,1777191043488,-283.16220615,0.00010699,2]
[421171085,1777191043497,-500.0,0.00010699,2]
[421171086,1777191043507,-500.0,0.00010699,2]
[421171087,1777191043517,-500.0,0.00010699,2]
[421171088,1777191043527,-411.25022973,0.00010699,2]
[421171089,1777191043537,-98159.41303993,0.000107,2]
[421171090,1777191043558,-900.05641542,0.000107,2]
[421171091,1777191043569,-3303.77802747,0.000107,2]
[421171092,1777191043581,-342.59194525,0.000107,2]
[421171098,1777191046255,-1216.0,9.8e-05,2]
[421171099,1777191046334,-3885.44204175,9.8e-05,2]
[421171100,1777191046409,-5590.0,9.8e-05,2]
[421171124,1777191047330,-88708.65795825,9.8e-05,2]
[421171125,1777191047341,-66500.34204174,0.000107,2]
[421171126,1777191047359,-2300.0,0.000107,2]
[421171127,1777191053664,3059.93702905,6.743e-05,2]
[421171133,1777192232380,-280.0,8.219e-05,2]
[421171134,1777192232390,-0.54353507,8.275e-05,2]
[421171135,1777192232463,-2499.45646493,8.275e-05,2]
[421171136,1777192232473,-673.7257484,8.33e-05,2]
[421171137,1777192232483,-1200.0,8.553e-05,2]
[421171139,1777192232492,-1200.0,8.554e-05,2]
[421171141,1777192232502,-300.0,8.554e-05,2]
[421171143,1777192232511,-300.0,8.554e-05,2]
[421171145,1777192232521,-300.0,8.554e-05,2]
[421171147,1777192232531,-300.0,8.554e-05,2]
[421171149,1777192232541,-300.0,8.554e-05,2]
[421171151,1777192232551,-2500.0,8.555e-05,2]
[421171153,1777192232560,-2500.0,8.555e-05,2]
[421171155,1777192232571,-2500.0,9.041e-05,2]
[421171157,1777192232580,-250.0,9.041e-05,2]
[421171159,1777192232591,-234.16754754,9.041e-05,2]
[421171161,1777192232601,-250.0,9.041e-05,2]
[421171163,1777192232611,-154.0,9.136e-05,2]
[421171165,1777192232622,-318.0,9.154e-05,2]
[421171168,1777192232632,-462.0,9.155e-05,2]
[421171170,1777192232643,-1890.0,9.174e-05,2]
[421171172,1777192232652,-902.0,9.192e-05,2]
[421171174,1777192232662,-294.0,9.193e-05,2]
[421171176,1777192232672,-151.0,9.193e-05,2]
[421171178,1777192232681,-1778.0,9.212e-05,2]
[421171180,1777192232691,-673.72574839,9.241e-05,2]
[421171182,1777192232700,-1680.0,9.408e-05,2]
[421171184,1777192232710,-420.0,9.409e-05,2]
[421171186,1777192232719,-290.0,9.409e-05,2]
[421171188,1777192232729,-150.0,9.517e-05,2]
[421171190,1777192232740,-150.0,9.518e-05,2]
[421171192,1777192232750,-150.23394626,9.518e-05,2]
[421171194,1777192232760,-150.0,9.518e-05,2]
[421171196,1777192232770,-150.0,9.518e-05,2]
[421171198,1777192232780,-150.0,9.518e-05,2]
[421171200,1777192232790,-150.0,9.518e-05,2]
[421171203,1777192232805,-150.0,9.518e-05,2]
[421171205,1777192232815,-150.0,9.518e-05,2]
[421171207,1777192232825,-150.8369207,9.518e-05,2]
[421171210,1777192232835,-150.0,9.518e-05,2]
[421171212,1777192232845,-150.0,9.518e-05,2]
[421171214,1777192232855,-150.0,9.518e-05,2]
[421171216,1777192232865,-202.85,9.518e-05,2]
[421171218,1777192232875,-150.0,9.535e-05,2]
[421171220,1777192232885,-150.0,9.553e-05,2]
[421171222,1777192232895,-150.0,9.562e-05,2]
[421171224,1777192232905,-150.0,9.571e-05,2]
[421171226,1777192232915,-150.0,9.588e-05,2]
[421171228,1777192232924,-150.0,9.606e-05,2]
[421171229,1777192232934,-150.0,9.606e-05,2]
[421171230,1777192232944,-150.0,9.614e-05,2]
[421171231,1777192232954,-150.0,9.624e-05,2]
[421171232,1777192232964,-150.0,9.635e-05,2]
[421171233,1777192232975,-150.0,9.641e-05,2]
[421171234,1777192232985,-3132.89,9.644e-05,2]
[421171235,1777192232996,-150.0,9.65e-05,2]
[421171236,1777192233006,-150.0,9.659e-05,2]
[421171237,1777192233016,-150.0,9.669e-05,2]
[421171238,1777192233026,-150.0,9.676e-05,2]
[421171239,1777192233036,-500.0,9.676e-05,2]
[421171240,1777192233046,-150.0,9.694e-05,2]
[421171241,1777192233056,-150.0,9.694e-05,2]
[421171242,1777192233066,-150.0,9.71e-05,2]
[421171243,1777192233076,-150.0,9.712e-05,2]
[421171244,1777192233086,-150.0,9.729e-05,2]
[421171245,1777192233096,-150.0,9.729e-05,2]
[421171246,1777192233106,-150.0,9.738e-05,2]
[421171247,1777192233115,-150.0,9.747e-05,2]
[421171248,1777192233125,-150.0,9.753e-05,2]
[421171249,1777192233135,-150.0,9.765e-05,2]
[421171250,1777192233145,-150.0,9.782e-05,2]
[421171251,1777192233155,-150.0,9.782e-05,2]
[421171252,1777192233166,-202.86,9.792e-05,2]
[421171253,1777192233177,-3213.857,9.799e-05,2]
[421171254,1777192233192,-214.678,9.799e-05,2]
[421171255,1777192233202,-150.0,9.8e-05,2]
[421171256,1777192233213,-150.0,9.806e-05,2]
[421171257,1777192233223,-150.0,9.817e-05,2]
[421171258,1777192233234,-150.0,9.82e-05,2]
[421171259,1777192233245,-150.0,9.826e-05,2]
[421171260,1777192233256,-150.0,9.835e-05,2]
[421171261,1777192233266,-410.45,9.85e-05,2]
[421171262,1777192233276,-150.0,9.853e-05,2]
[421171263,1777192233287,-150.0,9.87e-05,2]
[421171264,1777192233297,-150.0,9.87e-05,2]
[421171265,1777192233308,-150.0,9.87e-05,2]
[421171266,1777192233318,-150.0,9.87e-05,2]
[421171267,1777192233329,-150.0,9.888e-05,2]
[421171268,1777192233339,-150.0,9.902e-05,2]
[421171269,1777192233350,-150.0,9.906e-05,2]
[421171270,1777192233360,-150.0,9.914e-05,2]
[421171271,1777192233371,-150.0,9.923e-05,2]
[421171272,1777192233382,-150.0,9.941e-05,2]
[421171273,1777192233393,-150.0,9.941e-05,2]
[421171274,1777192233403,-500.0,9.95e-05,2]
[421171275,1777192233413,-150.0,9.958e-05,2]
[421171276,1777192233424,-150.0,9.958e-05,2]
[421171277,1777192233434,-150.0,9.971e-05,2]
[421171278,1777192233443,-250.0,9.976e-05,2]
[421171279,1777192233454,-150.0,9.976e-05,2]
[421171280,1777192233464,-600.0,9.981e-05,2]
[421171281,1777192233474,-32652.58810754,9.982e-05,2]
[421171282,1777192233488,-902.0,9.982e-05,2]
[421171283,1777192233513,-227.92913876,9.981e-05,2]
[421171284,1777192233523,-358000.35308069,9.982e-05,2]
[421171285,1777192233535,-760.0,9.982e-05,2]
[421171287,1777192238427,-205.22,9.932e-05,2]
[421171288,1777192238438,-291.2,9.981e-05,2]
[421171289,1777192238449,-88096.78609111,9.982e-05,2]
[421171290,1777192238480,-507.71285999,9.982e-05,2]
[421171291,1777192238493,-6149.7,9.982e-05,2]
[421171292,1777192238506,-579.25293646,9.982e-05,2]
[421171293,1777192238644,-486.24082675,9.982e-05,2]
[421171294,1777192238658,-177695.63565147,9.982e-05,2]
[421171295,1777192238670,-14165.27321156,9.982e-05,2]
[421171296,1777192238755,-163845.53314445,9.982e-05,2]
[421171297,1777192238768,-45802.157581,9.982e-05,2]
[421171345,1777192240594,-384.01,9.982e-05,2]
[421171346,1777192240651,-401.9924952,9.982e-05,2]
[421171347,1777192240665,-19597.93006533,9.982e-05,2]
[421171348,1777192240709,-5307.07047974,9.982e-05,2]
[421171357,1777192246364,-6699.99999997,9.982e-05,2]
[421171358,1777192246376,-1623.30494545,9.982e-05,2]
[421171359,1777192246420,-2656.61977035,9.982e-05,2]
[421171360,1777192246432,-3892.5,9.982e-05,2]
[421171361,1777192246763,-5734.12045807,9.982e-05,2]
[421171362,1777192246800,-50766.3098969,9.982e-05,2]
[421171365,1777192247877,-4925.49763448,9.982e-05,2]
[421171366,1777192247889,-379010.00000034,9.982e-05,2]
[421171367,1777192247905,-640.2771605,9.982e-05,2]
[421171368,1777192247917,-300.0,9.982e-05,2]
[421171376,1777193431511,-500.0,8.119e-05,2]
[421171377,1777193431521,-280.0,8.219e-05,2]
[421171378,1777193431531,-250.0,8.931e-05,2]
[421171379,1777193431541,-197.48,9.454e-05,2]
[421171380,1777193431551,-964.95933517,9.5e-05,2]
[421171381,1777193431560,-1210.98430607,9.514e-05,2]
[421171382,1777193431570,-733.0,9.523e-05,2]
[421171383,1777193431580,-489.0,9.549e-05,2]
[421171384,1777193431590,-224.57524947,9.549e-05,2]
[421171385,1777193431599,-1200.0,9.559e-05,2]
[421171386,1777193431609,-224.57524946,9.56e-05,2]
[421171387,1777193431619,-473.42585983,9.56e-05,2]
[421171388,1777193431667,-56649.47965164,9.56e-05,2]
[421171389,1777193431680,-282.203794,9.56e-05,2]
[421171390,1777193431775,-920.71332694,9.56e-05,2]
[421171391,1777193437743,-3404.56,9.56e-05,2]
[421171392,1777193437796,-2628.81312847,9.56e-05,2]
[421171393,1777193437809,-860.55186502,9.56e-05,2]
[421171396,1777193439833,-315.1908,9.56e-05,2]
[421171397,1777193439847,-644.52000004,9.56e-05,2]
[421171398,1777193440197,-889.80270313,9.56e-05,2]
[421171399,1777193440219,-2365.275,9.56e-05,2]
[421171400,1777193440233,-2511.0,9.56e-05,2]
[421171401,1777193440246,-1844.09,9.56e-05,2]
[421171402,1777193440266,-2857.40941191,9.56e-05,2]
[421171403,1777193440281,-4122.91034644,9.56e-05,2]
[421171427,1777193442972,-1000.0,9.56e-05,2]
[421171428,1777193443029,-9081.24685156,9.56e-05,2]
[421171429,1777193443040,-150.0,9.569e-05,2]
[421171430,1777193443051,-1000.0,9.569e-05,2]
[421171431,1777193443062,-500.0,9.569e-05,2]
[421171432,1777193443073,-201.34630077,9.569e-05,2]
[421171433,1777193443083,-224.57524946,9.57e-05,2]
[421171434,1777193443094,-250.0,9.57e-05,2]
[421171435,1777193443106,-98845.6329,9.57e-05,2]
[421171436,1777193443116,-6786.3412,9.57e-05,2]
[421171437,1777193443130,-1271552.26563702,9.57e-05,2]
[421171438,1777193443151,-739.23955012,9.57e-05,2]
[421171439,1777193443164,-2667.23149115,9.57e-05,2]
[421171471,1777193446567,-114850.96915825,9.57e-05,2]
[421171472,1777193446621,-517.71492331,9.57e-05,2]
[421171473,1777193446634,-14803.37094008,9.57e-05,2]
[421171474,1777193446646,-7740.41543541,9.57e-05,2]
[421171475,1777193878269,100000.0,1.31e-05,3]
[421171476,1777193878306,1282.13612075,1.31e-05,3]
[421171477,1777193888305,153.0,1.31e-05,3]
[421171478,1777193888565,153.0,4.292e-05,3]
[421171479,1777193893338,154.0,1.31e-05,3]
[421171480,1777193946863,153.0,1.31e-05,3]
[421171481,1777193947117,153.0,4.789e-05,3]
[421171482,1777193953184,154.0,1.31e-05,3]
[421171483,1777194010905,165.0,1.31e-05,3]
[421171484,1777194010976,153.0,1.31e-05,3]
[421171485,1777194011515,153.0,5.484e-05,3]
[421171488,1777194064764,153.0,1.31e-05,3]
[421171489,1777194065053,153.0,6.528e-05,3]
[421171491,1777194125135,2062.03012918,7.139e-05,2]
[421171492,1777194126237,153.0,1.31e-05,3]
[421171493,1777194187213,154.0,1.31e-05,3]
[421171494,1777194251398,154.0,1.31e-05,3]
[421171495,1777194307512,154.0,1.31e-05,3]
[421171496,1777194370896,154.0,1.31e-05,3]
[421171500,1777194392131,-351.9043466,8.019e-05,2]
[421171501,1777194425514,154.0,1.31e-05,3]
[421171502,1777194631996,-148.0956534,8.019e-05,2]
[421171503,1777194632008,-280.0,8.219e-05,2]
[421171504,1777194632018,-300.0,8.506e-05,2]
[421171505,1777194632028,-300.0,8.506e-05,2]
[421171506,1777194632038,-671.0,8.506e-05,2]
[421171507,1777194632048,-150.0,8.507e-05,2]
[421171508,1777194632059,-150.0,8.507e-05,2]
[421171509,1777194632076,-150.0,8.507e-05,2]
[421171510,1777194632090,-150.0,8.507e-05,2]
[421171511,1777194632101,-150.0,8.507e-05,2]
[421171512,1777194632111,-150.0,8.507e-05,2]
[421171513,1777194632122,-150.0,8.507e-05,2]
[421171514,1777194632133,-150.0,8.507e-05,2]
[421171515,1777194632143,-150.0,8.524e-05,2]
[421171516,1777194632153,-150.0,8.541e-05,2]
[421171517,1777194632163,-150.0,8.558e-05,2]